bitfinex/quotes_SOLUSD_20250529
["timestamp","ask_amount","ask_price","bid_price","bid_amount"]
[1748538344814,42.41372397,168.5,168.45,0.14216157]
[1748538344815,42.41372397,168.5,168.45,21.92653376]
[1748538345190,42.41372397,168.5,168.45,111.62653376]
[1748538345615,21.64221062,168.48,168.45,89.7]
[1748538345994,20.77151335,168.5,168.41,92.4647]
[1748538345995,21.64221062,168.46,168.41,92.4647]
[1748538346213,21.64221062,168.45,168.41,2.7647]
[1748538346815,5.9368321,168.44,168.41,2.7647]
[1748538347223,20.77891236,168.44,168.4,111.34221062]
[1748538347403,42.42112298,168.44,168.4,21.64221062]
[1748538347603,42.42112298,168.44,168.39,31.78221062]
[1748538348608,42.42112298,168.44,168.4,21.64221062]
[1748538349605,20.77891236,168.44,168.4,21.64221062]
[1748538350021,5.9368321,168.44,168.41,21.64221062]
[1748538350527,5.9368321,168.44,168.42,21.64221062]
[1748538350929,5.9368321,168.44,168.41,21.64221062]
[1748538351813,5.9368321,168.44,168.4,0.28432314]
[1748538352012,27.57904272,168.44,168.4,21.64221062]
[1748538352216,42.42112298,168.44,168.39,31.78221062]
[1748538353808,42.42112298,168.44,168.4,21.64221062]
[1748538354039,42.42112298,168.44,168.39,31.78221062]
[1748538355253,42.42112298,168.44,168.39,121.48221062]
[1748538355413,21.64221062,168.43,168.39,99.84]
[1748538355743,21.64221062,168.43,168.39,121.48221062]
[1748538355919,42.42112298,168.44,168.4,21.64221062]
[1748538356254,20.77891236,168.44,168.4,21.64221062]
[1748538356609,5.9368321,168.44,168.4,21.64221062]
[1748538356915,5.9368321,168.44,168.42,21.64221062]
[1748538357231,5.9368321,168.44,168.42,111.34221062]
[1748538357906,5.93647966,168.45,168.42,111.34221062]
[1748538358108,5.93647966,168.45,168.42,89.7]
[1748538359518,5.93647966,168.45,168.42,111.34221062]
[1748538359830,5.93647966,168.45,168.43,21.64221062]
[1748538360015,5.93612727,168.46,168.43,21.64221062]
[1748538362716,21.64221062,168.43,168.39,99.84]
[1748538362915,42.42112298,168.44,168.4,21.64221062]
[1748538363124,42.42112298,168.44,168.39,99.84]
[1748538363125,5.9368321,168.44,168.41,21.64221062]
[1748538363512,21.64221062,168.46,168.41,21.64221062]
[1748538363513,5.93612727,168.46,168.42,21.64221062]
[1748538363837,5.93612727,168.46,168.43,21.64221062]
[1748538364517,5.93577491,168.47,168.44,21.64221062]
[1748538365038,5.93577491,168.47,168.43,21.64221062]
[1748538365330,21.64221062,168.45,168.39,99.98216157]
[1748538365504,21.64221062,168.44,168.4,21.64221062]
[1748538366633,5.93718458,168.43,168.4,21.64221062]
[1748538368709,5.9368321,168.44,168.4,21.64221062]
[1748538368933,5.9368321,168.44,168.39,99.84]
[1748538369150,5.9368321,168.44,168.4,21.64221062]
[1748538369511,5.9368321,168.44,168.41,21.64221062]
[1748538369824,5.9368321,168.44,168.41,89.7]
[1748538370019,42.42112298,168.44,168.41,89.7]
[1748538370321,21.64221062,168.43,168.41,89.7]
[1748538370724,5.9375371,168.42,168.41,89.7]
[1748538370918,5.9375371,168.42,168.39,99.84]
[1748538372648,27.57974772,168.42,168.39,99.84]
[1748538372810,5.9375371,168.42,168.39,99.84]
[1748538373212,5.9375371,168.42,168.39,121.48221062]
[1748538373822,5.9375371,168.42,168.39,99.84]
[1748538374007,5.9375371,168.42,168.39,10.14]
[1748538374008,42.42359049,168.42,168.39,10.14]
[1748538375532,20.78137987,168.42,168.39,10.14]
[1748538376035,5.9375371,168.42,168.39,10.14]
[1748538376245,27.57974772,168.42,168.39,10.14]
[1748538376420,5.9375371,168.42,168.39,10.14]
[1748538376939,5.9375371,168.42,168.39,31.78221062]
[1748538377140,5.9375371,168.42,168.39,10.14]
[1748538378346,5.9375371,168.42,168.39,31.78221062]
[1748538378544,5.93728184,168.43,168.4,21.64221062]
[1748538379061,5.93647966,168.45,168.4,21.64221062]
[1748538379225,12.6877,168.51,168.43,21.64221062]
[1748538379420,12.6877,168.51,168.44,21.64221062]
[1748538379421,50.1877,168.51,168.44,21.64221062]
[1748538379631,21.64221062,168.48,168.44,111.34221062]
[1748538380427,20.77151335,168.5,168.45,21.64221062]
[1748538380428,27.57692872,168.5,168.45,21.64221062]
[1748538380621,27.57692872,168.5,168.46,21.64221062]
[1748538381739,5.9347181,168.5,168.46,21.64221062]
[1748538382236,21.64221062,168.5,168.46,21.64221062]
[1748538383041,20.76857341,168.53,168.46,21.64221062]
[1748538383247,5.93507033,168.49,168.46,21.64221062]
[1748538383726,5.93401376,168.52,168.48,21.64221062]
[1748538383928,5.93401376,168.52,168.49,21.64221062]
[1748538385147,5.93401376,168.52,168.5,21.64221062]
[1748538385441,5.93366166,168.53,168.5,21.64221062]
[1748538385943,5.93366166,168.53,168.49,21.64221062]
[1748538386122,21.64221062,168.52,168.48,89.7]
[1748538386752,21.64221062,168.5,168.46,21.64221062]
[1748538387621,5.93507033,168.49,168.44,8.9344]
[1748538387852,20.77274615,168.49,168.46,21.64221062]
[1748538388443,5.93507033,168.49,168.48,21.64221062]
[1748538388617,5.93436591,168.51,168.48,21.64221062]
[1748538388821,5.9333096,168.54,168.5,21.64221062]
[1748538389022,5.9333096,168.54,168.51,21.64221062]
[1748538389227,11.84,168.52,168.51,21.64221062]
[1748538389447,27.57552022,168.54,168.5,21.64221062]
[1748538389747,42.40879422,168.54,168.5,21.64221062]
[1748538395242,21.64221062,168.51,168.47,21.64221062]
[1748538396656,37.48,168.52,168.48,21.64221062]
[1748538396861,37.48,168.52,168.49,21.64221062]
[1748538397053,5.93436591,168.51,168.49,21.64221062]
[1748538399563,20.77028069,168.51,168.48,21.64221062]
[1748538400337,5.93436591,168.51,168.49,21.64221062]
[1748538400561,5.93436591,168.51,168.5,21.64221062]
[1748538401065,5.93401376,168.52,168.49,21.64221062]
[1748538401362,5.93401376,168.52,168.5,21.64221062]
[1748538402845,5.93401376,168.52,168.49,21.64221062]
[1748538403158,42.41125879,168.52,168.46,47.58]
[1748538403361,21.64221062,168.51,168.47,21.64221062]
[1748538403661,21.64221062,168.51,168.46,47.58]
[1748538403868,21.64221062,168.51,168.46,69.22221062]
[1748538404037,20.76904817,168.52,168.47,21.64221062]
[1748538404240,21.64221062,168.51,168.47,21.64221062]
[1748538404847,21.64221062,168.5,168.46,69.22221062]
[1748538405364,5.93507033,168.49,168.46,69.22221062]
[1748538405744,5.93507033,168.49,168.46,47.58]
[1748538406673,21.64221062,168.47,168.43,21.64221062]
[1748538406871,21.64221062,168.47,168.42,21.64221062]
[1748538407043,21.64221062,168.47,168.43,21.64221062]
[1748538407239,58.23274615,168.49,168.45,21.64221062]
[1748538407446,58.23274615,168.49,168.46,21.64221062]
[1748538407792,21.64221062,168.47,168.42,21.64221062]
[1748538407972,21.64221062,168.47,168.41,10.08]
[1748538408268,21.64221062,168.45,168.41,10.08]
[1748538408476,59.10221062,168.45,168.41,31.72221062]
[1748538409288,5.9368321,168.44,168.41,31.72221062]
[1748538412840,42.42112298,168.44,168.41,10.08]
[1748538413039,42.42112298,168.44,168.36,2.7658]
[1748538413040,21.64221062,168.42,168.36,2.7658]
[1748538413342,59.10221062,168.41,168.37,21.64221062]
[1748538413558,5.93824228,168.4,168.36,24.40801062]
[1748538413745,21.64221062,168.37,168.28,97.69149035]
[1748538413948,21.64221062,168.32,168.28,24.38861062]
[1748538414154,21.64221062,168.32,168.28,2.7464]
[1748538414352,21.64221062,168.33,168.29,21.64221062]
[1748538414555,37.46,168.36,168.29,21.64221062]
[1748538414556,21.64221062,168.34,168.29,21.64221062]
[1748538414772,21.64221062,168.32,168.28,2.7464]
[1748538415072,32.2502,168.38,168.26,10.08]
[1748538415073,32.39236157,168.38,168.26,10.08]
[1748538415295,21.64221062,168.29,168.24,6.5937]
[1748538415446,21.64221062,168.29,168.25,21.64221062]
[1748538415652,43.40190982,168.3,168.26,21.64221062]
[1748538415653,37.46,168.3,168.26,21.64221062]
[1748538416077,37.46,168.3,168.27,21.64221062]
[1748538417053,37.46,168.3,168.26,21.64221062]
[1748538417445,37.46,168.3,168.27,21.64221062]
[1748538417650,37.46,168.3,168.28,21.64221062]
[1748538418360,27.58221958,168.35,168.29,21.64221062]
[1748538418655,65.04221958,168.35,168.3,21.64221062]
[1748538418851,21.64221062,168.34,168.3,21.64221062]
[1748538419047,21.64221062,168.36,168.32,21.64221062]
[1748538419251,6.2502,168.38,168.28,26.42648471]
[1748538419252,21.64221062,168.38,168.34,21.64221062]
[1748538419466,59.10221062,168.38,168.34,21.64221062]
[1748538419648,5.93930035,168.37,168.33,21.64221062]
[1748538420054,27.58127019,168.38,168.34,21.64221062]
[1748538420281,59.10221062,168.4,168.36,21.64221062]
[1748538420676,59.10221062,168.4,168.31,34.916046]
[1748538420677,21.64221062,168.39,168.35,21.64221062]
[1748538420851,21.64221062,168.36,168.32,21.64221062]
[1748538421354,37.46,168.4,168.35,21.64221062]
[1748538421565,5.93859492,168.39,168.35,21.64221062]
[1748538421757,21.64221062,168.38,168.34,21.64221062]
[1748538422379,21.64221062,168.36,168.31,28.5483]
[1748538422571,21.64221062,168.36,168.32,21.64221062]
[1748538422871,21.64221062,168.37,168.32,21.64221062]
[1748538423074,20.78508224,168.39,168.32,21.64221062]
[1748538423075,21.64221062,168.36,168.32,21.64221062]
[1748538423282,21.64221062,168.35,168.29,26.0]
[1748538423454,37.46,168.37,168.29,26.0]
[1748538423455,21.64221062,168.34,168.29,21.64221062]
[1748538423654,5.94071169,168.33,168.29,21.64221062]
[1748538423980,5.94071169,168.33,168.3,21.64221062]
[1748538424366,5.94000594,168.35,168.31,21.64221062]
[1748538424683,5.94000594,168.35,168.32,21.64221062]
[1748538424857,5.93971233,168.36,168.28,8.67466615]
[1748538425052,5.93971233,168.36,168.32,21.64221062]
[1748538425276,27.58192295,168.36,168.32,21.64221062]
[1748538425557,5.93971233,168.36,168.32,21.64221062]
[1748538426069,27.58192295,168.36,168.32,21.64221062]
[1748538426375,21.64221062,168.35,168.31,21.64221062]
[1748538427379,5.94035879,168.34,168.31,21.64221062]
[1748538427684,5.94035879,168.34,168.32,21.64221062]
[1748538427878,5.9401232,168.35,168.32,21.64221062]
[1748538428080,40.98846747,168.4,168.33,21.64221062]
[1748538428378,59.10221062,168.38,168.33,21.64221062]
[1748538428581,21.64221062,168.37,168.33,21.64221062]
[1748538429876,5.93965312,168.36,168.33,21.64221062]
[1748538432385,5.93965312,168.36,168.29,69.44200168]
[1748538432592,5.93965312,168.36,168.33,21.64221062]
[1748538433083,27.58186374,168.36,168.29,63.5]
[1748538433474,27.58186374,168.36,168.32,21.64221062]
[1748538435782,5.93965312,168.36,168.33,21.64221062]
[1748538435990,5.93965312,168.36,168.34,21.64221062]
[1748538436289,5.93930035,168.37,168.33,21.64221062]
[1748538436992,5.93859492,168.39,168.36,21.64221062]
[1748538437357,5.93859492,168.39,168.3,21.92653376]
[1748538437358,5.93859492,168.39,168.35,21.64221062]
[1748538438378,27.58080554,168.39,168.35,21.64221062]
[1748538438757,42.42729286,168.39,168.3,0.28432314]
[1748538438974,21.64221062,168.38,168.34,21.64221062]
[1748538439392,5.93859492,168.39,168.35,21.64221062]
[1748538440263,27.58080554,168.39,168.35,21.64221062]
[1748538440689,5.93859492,168.39,168.35,21.64221062]
[1748538440879,5.93859492,168.39,168.36,21.64221062]
[1748538441603,5.93859492,168.39,168.37,21.64221062]
[1748538441896,5.93788967,168.41,168.37,21.64221062]
[1748538442397,27.58010029,168.41,168.37,21.64221062]
[1748538442594,21.64221062,168.4,168.32,37.5]
[1748538442885,5.93859492,168.39,168.35,21.64221062]
[1748538443301,20.78508224,168.39,168.35,21.64221062]
[1748538444905,20.78508224,168.39,168.34,21.64221062]
[1748538445405,42.42729286,168.39,168.34,21.64221062]
[1748538445602,20.78508224,168.39,168.31,80.058]
[1748538445779,20.78508224,168.39,168.35,21.64221062]
[1748538446499,5.93859492,168.39,168.36,21.64221062]
[1748538447081,5.93824228,168.4,168.36,21.64221062]
[1748538448300,27.5804529,168.4,168.36,21.64221062]
[1748538449286,27.5804529,168.4,168.32,6.36746028]
[1748538449287,5.93824228,168.4,168.37,21.64221062]
[1748538449490,5.93824228,168.4,168.36,21.64221062]
[1748538449803,27.5804529,168.4,168.36,59.14221062]
[1748538450614,5.93824228,168.4,168.36,59.14221062]
[1748538450816,5.93824228,168.4,168.37,21.64221062]
[1748538451530,5.93788967,168.41,168.38,21.64221062]
[1748538453304,5.93788967,168.41,168.39,21.64221062]
[1748538453490,5.9375371,168.42,168.4,21.64221062]
[1748538453794,5.93577491,168.47,168.41,21.64221062]
[1748538453988,5.93577491,168.47,168.44,21.64221062]
[1748538454796,5.93577491,168.47,168.43,21.64221062]
[1748538454797,27.57798553,168.47,168.43,21.64221062]
[1748538455300,42.41742281,168.47,168.43,21.64221062]
[1748538455501,20.77521219,168.47,168.4,37.5]
[1748538455713,21.64221062,168.45,168.41,21.64221062]
[1748538455899,20.77521219,168.47,168.37,36.06]
[1748538455900,21.64221062,168.44,168.37,73.56]
[1748538456285,21.64221062,168.43,168.39,21.64221062]
[1748538456616,21.64221062,168.43,168.38,21.64221062]
[1748538456815,21.64221062,168.43,168.37,10.06]
[1748538456816,21.64221062,168.42,168.37,31.70221062]
[1748538457110,37.42,168.44,168.39,21.64221062]
[1748538457111,21.64221062,168.43,168.39,21.64221062]
[1748538457320,21.64221062,168.43,168.38,21.64221062]
[1748538457692,20.78137987,168.42,168.38,21.64221062]
[1748538458718,20.78137987,168.42,168.39,21.64221062]
[1748538458918,5.9375371,168.42,168.41,21.64221062]
[1748538459530,5.9375371,168.42,168.4,21.64221062]
[1748538460017,5.93718458,168.43,168.4,21.64221062]
[1748538460191,5.93718458,168.43,168.41,21.64221062]
[1748538461488,5.93718458,168.43,168.4,21.64221062]
[1748538462101,5.9368321,168.44,168.4,21.64221062]
[1748538462303,20.77891236,168.44,168.4,21.64221062]
[1748538464801,20.77891236,168.44,168.41,21.64221062]
[1748538465305,5.9368321,168.44,168.43,21.64221062]
[1748538466225,20.77591208,168.47,168.43,21.64221062]
[1748538466526,42.4181227,168.47,168.43,21.64221062]
[1748538467223,79.8381227,168.47,168.43,21.64221062]
[1748538467612,21.64221062,168.46,168.42,21.64221062]
[1748538468117,21.64221062,168.46,168.41,21.64221062]
[1748538468813,20.77767882,168.45,168.41,21.64221062]
[1748538469009,42.41988944,168.45,168.41,21.64221062]
[1748538469628,20.77767882,168.45,168.42,21.64221062]
[1748538469798,20.77767882,168.45,168.37,79.49929154]
[1748538469799,5.93647966,168.45,168.43,21.64221062]
[1748538471133,5.93577491,168.47,168.43,21.64221062]
[1748538471829,5.93577491,168.47,168.39,59.14221062]
[1748538472132,5.93577491,168.47,168.42,21.64221062]
[1748538472133,42.41742281,168.47,168.42,21.64221062]
[1748538472442,42.41742281,168.47,168.43,21.64221062]
[1748538473110,20.77521219,168.47,168.43,21.64221062]
[1748538473430,20.77521219,168.47,168.44,21.64221062]
[1748538474911,5.93577491,168.47,168.44,21.64221062]
[1748538482635,5.93577491,168.47,168.45,21.64221062]
[1748538482897,14.83667544,168.51,168.42,2.8431]
[1748538482898,5.9347181,168.5,168.46,21.64221062]
[1748538483018,5.9347181,168.5,168.49,21.64221062]
[1748538483345,35.9347181,168.5,168.49,21.64221062]
[1748538483839,27.57692872,168.5,168.46,37.5]
[1748538484051,21.64221062,168.48,168.46,37.5]
[1748538484352,37.4,168.49,168.46,21.64221062]
[1748538484527,5.9354226,168.48,168.47,21.64221062]
[1748538484737,5.9354226,168.48,168.43,10.04]
[1748538484738,5.9354226,168.48,168.46,21.64221062]
[1748538485055,27.57763322,168.48,168.43,31.68221062]
[1748538485232,21.64221062,168.47,168.43,31.68221062]
[1748538486225,21.64221062,168.47,168.43,10.04]
[1748538486534,20.77767882,168.45,168.41,21.64221062]
[1748538486740,20.77767882,168.45,168.38,13.0566]
[1748538486741,21.64221062,168.44,168.39,21.64221062]
[1748538486947,21.64221062,168.44,168.38,13.0566]
[1748538487135,21.64221062,168.44,168.4,21.64221062]
[1748538487330,58.15767882,168.45,168.4,21.64221062]
[1748538487533,79.79988944,168.45,168.4,21.64221062]
[1748538487750,79.79988944,168.45,168.41,21.64221062]
[1748538487928,21.64221062,168.44,168.38,13.0566]
[1748538488124,21.64221062,168.44,168.39,21.64221062]
[1748538488817,5.93718458,168.43,168.39,21.64221062]
[1748538489942,5.93718458,168.43,168.4,21.64221062]
[1748538490142,5.93718458,168.43,168.38,13.0566]
[1748538490369,5.93718458,168.43,168.4,21.64221062]
[1748538492855,5.93660637,168.45,168.42,21.64221062]
[1748538493236,5.93507033,168.49,168.44,21.64221062]
[1748538493557,5.93507033,168.49,168.46,21.64221062]
[1748538494128,5.93507033,168.49,168.47,21.64221062]
[1748538494349,43.31436591,168.51,168.47,21.64221062]
[1748538494659,5.93436591,168.51,168.48,21.64221062]
[1748538495031,5.93436591,168.51,168.49,21.64221062]
[1748538495456,5.93366166,168.53,168.5,21.64221062]
[1748538495661,5.93366166,168.53,168.51,21.64221062]
[1748538496236,42.40821761,168.55,168.51,21.64221062]
[1748538496450,42.40821761,168.55,168.5,21.64221062]
[1748538496768,42.40821761,168.55,168.46,37.5]
[1748538496769,21.64221062,168.53,168.46,37.5]
[1748538496934,21.64221062,168.52,168.47,21.64221062]
[1748538497257,21.64221062,168.51,168.47,21.64221062]
[1748538497561,21.64221062,168.51,168.46,21.64221062]
[1748538498234,20.77151335,168.5,168.47,21.64221062]
[1748538498437,20.77151335,168.5,168.49,21.64221062]
[1748538499045,5.9347181,168.5,168.49,21.64221062]
[1748538500471,20.76819938,168.53,168.49,59.14221062]
[1748538500777,20.76819938,168.53,168.51,21.64221062]
[1748538501343,14.83453772,168.53,168.51,21.64221062]
[1748538501945,36.47674834,168.53,168.49,59.14221062]
[1748538502844,14.83453772,168.53,168.5,21.64221062]
[1748538503462,20.76819938,168.53,168.5,21.64221062]
[1748538505882,5.93366166,168.53,168.52,21.64221062]
[1748538506164,5.93295757,168.55,168.52,21.64221062]
[1748538506339,5.93295757,168.55,168.54,21.64221062]
[1748538506963,5.93295757,168.55,168.53,21.64221062]
[1748538507747,14.83158695,168.56,168.53,21.64221062]
[1748538508053,14.83158695,168.56,168.54,21.64221062]
[1748538508267,5.93225366,168.57,168.54,21.64221062]
[1748538508842,5.93225366,168.57,168.56,21.64221062]
[1748538509045,24.86681053,168.62,168.56,21.64221062]
[1748538509046,43.2911981,168.6,168.56,21.64221062]
[1748538509253,43.2911981,168.6,168.59,21.64221062]
[1748538509254,5.9311981,168.6,168.59,21.64221062]
[1748538509841,5.93084633,168.61,168.59,21.64221062]
[1748538510059,5.93084633,168.61,168.55,2.9403]
[1748538510060,5.93084633,168.61,168.6,21.64221062]
[1748538510374,58.98221062,168.64,168.6,21.64221062]
[1748538510375,5.92979127,168.64,168.6,21.64221062]
[1748538510686,5.92979127,168.64,168.62,21.64221062]
[1748538511345,5.92979127,168.64,168.63,21.64221062]
[1748538511743,5.92873658,168.67,168.63,21.64221062]
[1748538511975,5.92873658,168.67,168.63,59.14221062]
[1748538512352,21.64221062,168.66,168.63,37.5]
[1748538513887,27.57200189,168.64,168.63,37.5]
[1748538515658,42.39648006,168.64,168.58,21.64221062]
[1748538515858,21.64221062,168.62,168.58,21.64221062]
[1748538516264,37.32,168.63,168.58,21.64221062]
[1748538516564,58.96221062,168.63,168.58,21.64221062]
[1748538516771,5.9304946,168.62,168.59,21.64221062]
[1748538516979,5.9304946,168.62,168.6,21.64221062]
[1748538517286,5.9304946,168.62,168.61,21.64221062]
[1748538517782,5.9304946,168.62,168.6,21.64221062]
[1748538519155,5.9304946,168.62,168.57,47.5]
[1748538519359,5.9304946,168.62,168.59,21.64221062]
[1748538519665,20.7567311,168.62,168.58,21.64221062]
[1748538520775,20.7567311,168.62,168.59,21.64221062]
[1748538520969,5.9304946,168.62,168.6,21.64221062]
[1748538522075,43.25025313,168.63,168.6,21.64221062]
[1748538522977,43.25025313,168.63,168.59,21.64221062]
[1748538523789,43.25025313,168.63,168.6,21.64221062]
[1748538523998,43.25025313,168.63,168.61,21.64221062]
[1748538524286,5.92873658,168.67,168.62,21.64221062]
[1748538524471,37.32,168.66,168.62,21.64221062]
[1748538525174,5.92943966,168.65,168.62,21.64221062]
[1748538526872,5.9290881,168.66,168.62,21.64221062]
[1748538527070,43.2490881,168.66,168.62,21.64221062]
[1748538527962,5.9290881,168.66,168.63,21.64221062]
[1748538528163,5.9290881,168.66,168.65,21.64221062]
[1748538529190,5.92873658,168.67,168.65,21.64221062]
[1748538531079,20.74811784,168.69,168.65,21.64221062]
[1748538531289,20.74811784,168.69,168.66,21.64221062]
[1748538533096,20.74811784,168.69,168.67,21.64221062]
[1748538533799,5.92803367,168.69,168.68,21.64221062]
[1748538534273,5.92803367,168.69,168.67,21.64221062]
[1748538534906,5.92803367,168.69,168.68,21.64221062]
[1748538535451,5.92733092,168.71,168.68,21.64221062]
[1748538536698,20.74565822,168.71,168.68,21.64221062]
[1748538540229,20.74565822,168.71,168.67,21.64221062]
[1748538540631,21.64221062,168.69,168.63,73.5]
[1748538540933,21.64221062,168.68,168.64,21.64221062]
[1748538541115,21.64221062,168.69,168.65,21.64221062]
[1748538541626,21.64221062,168.68,168.65,37.5]
[1748538542213,5.92873658,168.67,168.65,37.5]
[1748538542732,5.92873658,168.67,168.65,59.14221062]
[1748538543105,21.64221062,168.66,168.61,37.5]
[1748538543306,21.64221062,168.62,168.56,9.98]
[1748538543532,21.64221062,168.61,168.56,69.12221062]
[1748538543719,37.28,168.62,168.56,69.12221062]
[1748538543919,21.64221062,168.61,168.56,69.12221062]
[1748538544405,5.9311981,168.6,168.56,69.12221062]
[1748538545546,42.40140397,168.6,168.56,69.12221062]
[1748538545832,42.40140397,168.6,168.56,47.48]
[1748538546213,21.64221062,168.59,168.56,47.48]
[1748538546557,27.57411238,168.58,168.56,9.98]
[1748538546719,27.57411238,168.58,168.54,37.5]
[1748538546924,27.57411238,168.58,168.53,47.64221062]
[1748538547456,42.40386679,168.58,168.53,21.64221062]
[1748538547612,21.64221062,168.57,168.52,26.0]
[1748538547817,21.64221062,168.57,168.52,21.64221062]
[1748538548016,21.64221062,168.57,168.53,21.64221062]
[1748538548214,43.21190176,168.58,168.56,21.64221062]
[1748538548531,5.93190176,168.58,168.57,21.64221062]
[1748538549317,20.75495282,168.64,168.57,47.64221062]
[1748538549517,58.92221062,168.63,168.59,21.64221062]
[1748538550027,21.64221062,168.62,168.57,47.64221062]
[1748538550537,5.93084633,168.61,168.58,21.64221062]
[1748538552537,20.75702728,168.62,168.59,21.64221062]
[1748538553225,20.75702728,168.62,168.59,59.14221062]
[1748538553838,42.3992379,168.62,168.59,37.5]
[1748538554942,21.64221062,168.61,168.59,37.5]
[1748538555241,37.28,168.6,168.59,37.5]
[1748538555549,37.28,168.6,168.57,59.14221062]
[1748538556613,5.93154991,168.59,168.57,37.5]
[1748538556831,27.57376053,168.59,168.57,37.5]
[1748538557534,27.57376053,168.59,168.53,26.0]
[1748538557535,5.93154991,168.59,168.54,37.5]
[1748538557741,5.93154991,168.59,168.55,21.64221062]
[1748538558323,5.93154991,168.59,168.56,21.64221062]
[1748538558544,42.40263531,168.59,168.55,21.64221062]
[1748538558757,20.76042469,168.59,168.54,37.5]
[1748538559220,21.64221062,168.58,168.54,59.14221062]
[1748538559420,37.28,168.57,168.54,59.14221062]
[1748538559619,37.28,168.57,168.56,21.64221062]
[1748538559853,5.93154991,168.59,168.56,21.64221062]
[1748538560020,5.93154991,168.59,168.57,21.64221062]
[1748538560942,5.93154991,168.59,168.54,37.5]
[1748538561146,5.93154991,168.59,168.56,21.64221062]
[1748538561946,5.93154991,168.59,168.54,37.5]
[1748538562146,5.93154991,168.59,168.57,21.64221062]
[1748538562318,5.93154991,168.59,168.58,21.64221062]
[1748538562943,5.9311981,168.6,168.57,21.64221062]
[1748538564039,5.9311981,168.6,168.56,21.64221062]
[1748538564040,20.75919335,168.6,168.56,21.64221062]
[1748538565362,20.75919335,168.6,168.54,37.5]
[1748538565542,20.75919335,168.6,168.56,21.64221062]
[1748538567462,20.75919335,168.6,168.57,21.64221062]
[1748538569037,42.40140397,168.6,168.56,21.64221062]
[1748538570137,21.64221062,168.57,168.54,37.5]
[1748538570440,37.26,168.58,168.54,59.14221062]
[1748538570761,37.26,168.58,168.55,21.64221062]
[1748538570966,37.26,168.58,168.54,59.14221062]
[1748538571135,37.26,168.58,168.55,37.5]
[1748538571954,5.93225366,168.57,168.55,37.5]
[1748538575361,21.64221062,168.56,168.55,37.5]
[1748538575548,21.64221062,168.56,168.52,59.14221062]
[1748538576070,5.93295757,168.55,168.52,59.14221062]
[1748538576360,5.93295757,168.55,168.52,37.5]
[1748538576661,5.93295757,168.55,168.52,59.14221062]
[1748538576960,20.76535151,168.55,168.52,59.14221062]
[1748538577153,20.76535151,168.55,168.51,31.62221062]
[1748538577457,58.02535151,168.55,168.51,69.12221062]
[1748538578538,79.66756213,168.55,168.51,69.12221062]
[1748538579632,58.02535151,168.55,168.51,69.12221062]
[1748538580039,58.02535151,168.55,168.52,21.64221062]
[1748538582841,58.02535151,168.55,168.52,59.14221062]
[1748538583773,21.64221062,168.53,168.52,37.5]
[1748538585778,27.57587228,168.53,168.52,37.5]
[1748538585981,5.93366166,168.53,168.52,37.5]
[1748538586278,27.57587228,168.53,168.52,37.5]
[1748538586846,5.93366166,168.53,168.52,37.5]
[1748538587072,2.8288,168.57,168.52,37.5]
[1748538587073,5.9326056,168.56,168.52,37.5]
[1748538587274,37.26,168.55,168.52,59.14221062]
[1748538587665,58.90221062,168.55,168.52,37.5]
[1748538588003,5.9333096,168.54,168.52,37.5]
[1748538589159,27.57552022,168.54,168.52,37.5]
[1748538589462,21.64221062,168.53,168.49,59.14221062]
[1748538589660,27.57552022,168.54,168.49,59.14221062]
[1748538590066,27.57552022,168.54,168.5,21.64221062]
[1748538590300,27.57552022,168.54,168.49,37.5]
[1748538590469,27.57552022,168.54,168.5,21.64221062]
[1748538590961,5.9333096,168.54,168.51,21.64221062]
[1748538591888,5.9333096,168.54,168.5,21.64221062]
[1748538592261,5.9333096,168.54,168.5,47.64221062]
[1748538592659,42.40879422,168.54,168.5,47.64221062]
[1748538592884,42.40879422,168.54,168.5,85.14221062]
[1748538593890,20.7665836,168.54,168.5,85.14221062]
[1748538594589,20.7665836,168.54,168.5,47.64221062]
[1748538595372,5.9333096,168.54,168.51,21.64221062]
[1748538597106,5.9333096,168.54,168.5,47.64221062]
[1748538597890,42.40879422,168.54,168.5,26.0]
[1748538598291,42.40879422,168.54,168.5,47.64221062]
[1748538599289,21.64221062,168.53,168.5,26.0]
[1748538599483,37.26,168.52,168.5,26.0]
[1748538599894,37.26,168.52,168.5,47.64221062]
[1748538601400,5.93436591,168.51,168.5,47.64221062]
[1748538601587,5.93436591,168.51,168.5,85.14221062]
[1748538601790,5.93436591,168.51,168.5,37.5]
[1748538602099,5.93436591,168.51,168.49,59.14221062]
[1748538603279,5.93436591,168.51,168.5,21.64221062]
[1748538604167,37.26,168.52,168.5,21.64221062]
[1748538604372,5.9326056,168.56,168.51,21.64221062]
[1748538604570,43.1726056,168.56,168.55,21.64221062]
[1748538604976,5.9326056,168.56,168.54,21.64221062]
[1748538605303,43.1726056,168.56,168.53,21.64221062]